fUST/lending_fUST_20240924
["ID","MTS","AMOUNT","RATE_DAILY","PERIOD"]
[339062189,1727185870207,-832.28,0.00028767,2]
[339062190,1727185870219,-539.78,0.00028767,7]
[339062191,1727185870229,-500.0,0.00028767,7]
[339062192,1727185870239,-500.0,0.00028767,7]
[339062193,1727185870249,-500.0,0.00028767,7]
[339062194,1727185870259,-834.7,0.00028767,7]
[339062195,1727185870269,-341.35912451,0.00028767,7]
[339062196,1727185870278,-882.2,0.00028767,7]
[339062197,1727185870294,-700.78,0.00028767,7]
[339062198,1727185870304,-923.88,0.00028767,7]
[339062199,1727185870313,-500.0,0.00028767,7]
[339062200,1727185870323,-500.0,0.00028767,7]
[339062201,1727185870334,-500.0,0.00028767,7]
[339062202,1727185870345,-500.0,0.00028767,7]
[339062203,1727185870359,-500.0,0.00028767,7]
[339062204,1727185870368,-699.55,0.00028767,7]
[339062205,1727185870378,-500.0,0.00028767,7]
[339062206,1727185870390,-500.0,0.00028767,7]
[339062207,1727185870401,-500.0,0.00028767,7]
[339062208,1727185870411,-151.0,0.00028767,7]
[339062209,1727185870423,-500.0,0.00028767,2]
[339062210,1727185870434,-151.0,0.00028767,7]
[339062211,1727185870446,-500.0,0.00028767,7]
[339062212,1727185870457,-226.20633015,0.00028767,7]
[339062213,1727185870466,-949.76,0.00028767,7]
[339062214,1727185870476,-500.0,0.00028767,7]
[339062215,1727185870485,-500.0,0.00028767,7]
[339062216,1727185870495,-603.71,0.00028767,7]
[339062217,1727185870505,-300.133387,0.00028767,7]
[339062218,1727185870517,-500.0,0.00028767,7]
[339062219,1727185870528,-500.0,0.00028767,7]
[339062220,1727185870541,-500.0,0.00028767,7]
[339062221,1727185870552,-683.94,0.00028767,7]
[339062222,1727185870562,-940.34,0.00028767,7]
[339062223,1727185870572,-1000.0,0.00028767,7]
[339062224,1727185870581,-500.0,0.00028767,7]
[339062225,1727185870591,-151.0,0.00028767,7]
[339062226,1727185870601,-154.219427,0.00028767,7]
[339062227,1727185870611,-354.51,0.00028767,7]
[339062228,1727185870620,-797.23,0.00028767,7]
[339062229,1727185870631,-500.0,0.00028767,7]
[339062230,1727185870641,-503.71699806,0.00028767,7]
[339062231,1727185870653,-523.77,0.00028767,7]
[339062232,1727185870663,-154.219427,0.00028767,7]
[339062233,1727185870672,-500.0,0.00028767,7]
[339062234,1727185870681,-634.21,0.00028767,7]
[339062235,1727185870691,-151.0,0.00028767,7]
[339062236,1727185870700,-500.0,0.00028767,7]
[339062237,1727185870710,-500.0,0.00028767,7]
[339062238,1727185870720,-500.0,0.00028767,7]
[339062239,1727185870731,-500.0,0.00028767,7]
[339062240,1727185870741,-500.0,0.00028767,7]
[339062241,1727185870751,-151.0,0.00028767,7]
[339062242,1727185870763,-500.0,0.00028767,7]
[339062243,1727185870773,-155.25961,0.00028767,7]
[339062244,1727185870782,-500.0,0.00028767,7]
[339062245,1727185870792,-151.0,0.00028767,7]
[339062246,1727185870802,-500.0,0.00028767,7]
[339062247,1727185870811,-500.0,0.00028767,7]
[339062248,1727185870821,-500.0,0.00028767,7]
[339062249,1727185870830,-322.523896,0.00028767,7]
[339062250,1727185870839,-322.523896,0.00028767,7]
[339062251,1727185870852,-774.11,0.00028767,7]
[339062252,1727185870863,-500.0,0.00028767,7]
[339062253,1727185870872,-500.0,0.00028767,7]
[339062254,1727185870883,-532.41,0.00028767,7]
[339062255,1727185870892,-519.04,0.00028767,7]
[339062256,1727185870902,-994.06,0.00028767,7]
[339062257,1727185870911,-751.74,0.00028767,7]
[339062258,1727185870921,-641.08,0.00028767,7]
[339062259,1727185870930,-500.0,0.00028767,7]
[339062260,1727185870940,-922.97,0.00028767,7]
[339062261,1727185870950,-810.17,0.00028767,2]
[339062262,1727185870960,-699.038868,0.00028767,7]
[339062263,1727185870970,-500.0,0.00028767,7]
[339062264,1727185870980,-500.0,0.00028767,7]
[339062265,1727185870989,-699.038868,0.00028767,7]
[339062266,1727185870998,-1474.2,0.00028767,7]
[339062267,1727185871007,-675.51,0.00028767,7]
[339062268,1727185871016,-151.0,0.00028767,7]
[339062269,1727185871026,-930.14,0.00028767,7]
[339062270,1727185871036,-623.3,0.00028767,7]
[339062271,1727185871045,-500.0,0.00028767,7]
[339062272,1727185871054,-500.0,0.00028767,7]
[339062273,1727185871064,-525.278445,0.00028767,7]
[339062274,1727185871073,-3188.19,0.00028767,7]
[339062275,1727185871082,-500.0,0.00028767,7]
[339062276,1727185871091,-525.278445,0.00028767,7]
[339062277,1727185871100,-1028.41,0.00028767,7]
[339062278,1727185871109,-1600.85,0.00028767,7]
[339062279,1727185871118,-151.0,0.00028767,7]
[339062280,1727185871127,-500.0,0.00028767,7]
[339062281,1727185871137,-1081.35,0.00028767,7]
[339062282,1727185871146,-500.0,0.00028767,7]
[339062283,1727185871155,-508.38203584,0.00028767,7]
[339062284,1727185871164,-151.0,0.00028767,7]
[339062285,1727185871174,-523.91829842,0.00028767,7]
[339062286,1727185871265,-500.0,0.00028767,7]
[339062287,1727185871275,-500.0,0.00028767,7]
[339062288,1727185871286,-565.286814,0.00028767,7]
[339062289,1727185871295,-755.32,0.00028767,7]
[339062290,1727185871304,-500.0,0.00028767,7]
[339062291,1727185871313,-500.0,0.00028767,7]
[339062292,1727185871323,-430.058416,0.00028767,7]
[339062293,1727185871332,-518.85,0.00028767,7]
[339062294,1727185871341,-565.286814,0.00028767,7]
[339062295,1727185871353,-500.0,0.00028767,7]
[339062296,1727185871365,-430.058416,0.00028767,7]
[339062297,1727185871375,-537.38,0.00028767,7]
[339062298,1727185871385,-500.0,0.00028767,7]
[339062299,1727185871394,-500.0,0.00028767,7]
[339062300,1727185871403,-500.0,0.00028767,7]
[339062301,1727185871414,-1428.87,0.00028767,7]
[339062302,1727185871423,-500.0,0.00028767,7]
[339062303,1727185871432,-500.0,0.00028767,7]
[339062304,1727185871441,-894.35,0.00028767,7]
[339062305,1727185871450,-719.56,0.00028767,7]
[339062306,1727185871459,-252.68,0.00028767,7]
[339062307,1727185871469,-500.0,0.00028767,7]
[339062308,1727185871478,-835.58,0.00028767,7]
[339062309,1727185871487,-689.75,0.00028767,7]
[339062310,1727185871497,-426.315147,0.00028767,7]
[339062311,1727185871506,-500.0,0.00028767,7]
[339062312,1727185871516,-151.0,0.00028767,7]
[339062313,1727185871525,-500.0,0.00028767,7]
[339062314,1727185871535,-1344.762998,0.00028767,7]
[339062315,1727185871545,-151.0,0.00028767,7]
[339062316,1727185871554,-426.315147,0.00028767,7]
[339062317,1727185871563,-1344.762998,0.00028767,7]
[339062318,1727185871573,-671.66,0.00028767,7]
[339062319,1727185871582,-500.0,0.00028767,7]
[339062320,1727185871592,-500.0,0.00028767,7]
[339062321,1727185871601,-214.9650325,0.00028767,7]
[339062322,1727185871610,-1570.3,0.00028767,7]
[339062323,1727185871619,-500.0,0.00028767,7]
[339062324,1727185871628,-929.8,0.00028767,7]
[339062325,1727185871638,-825.571215,0.00028767,7]
[339062326,1727185871647,-825.571215,0.00028767,7]
[339062327,1727185871657,-586.32,0.00028767,7]
[339062328,1727185871667,-331.266376,0.00028767,7]
[339062329,1727185871676,-500.0,0.00028767,7]
[339062330,1727185871685,-978.1,0.00028767,7]
[339062331,1727185871695,-331.266376,0.00028767,7]
[339062332,1727185871704,-240.90618,0.00028767,7]
[339062333,1727185871714,-500.0,0.00028767,7]
[339062334,1727185871723,-240.90618,0.00028767,7]
[339062335,1727185871732,-528.17,0.00028767,7]
[339062336,1727185871742,-500.0,0.00028767,7]
[339062337,1727185871751,-638.88239468,0.00028767,7]
[339062338,1727185871760,-500.0,0.00028767,7]
[339062339,1727185871770,-500.0,0.00028767,7]
[339062340,1727185871779,-500.0,0.00028767,7]
[339062341,1727185871789,-500.0,0.00028767,7]
[339062342,1727185871799,-500.0,0.00028767,7]
[339062343,1727185871810,-981.83,0.00028767,7]
[339062344,1727185871821,-703.98,0.00028767,7]
[339062345,1727185871831,-500.0,0.00028767,7]
[339062346,1727185871840,-500.0,0.00028767,7]
[339062347,1727185871851,-500.0,0.00028767,7]
[339062348,1727185871861,-564.57,0.00028767,7]
[339062349,1727185871870,-688.17,0.00028767,7]
[339062350,1727185871882,-1121.809827,0.00028767,7]
[339062351,1727185871893,-647.27,0.00028767,7]
[339062352,1727185871904,-500.0,0.00028767,7]
[339062353,1727185871914,-500.0,0.00028767,7]
[339062354,1727185871924,-500.0,0.00028767,7]
[339062355,1727185871935,-1121.809827,0.00028767,7]
[339062356,1727185871946,-1043.980229,0.00028767,7]
[339062357,1727185871955,-458.93229632,0.00028767,7]
[339062358,1727185871966,-500.0,0.00028767,7]
[339062359,1727185871976,-1043.980229,0.00028767,7]
[339062360,1727185871985,-500.0,0.00028767,7]
[339062361,1727185871994,-500.0,0.00028767,7]
[339062362,1727185872003,-500.0,0.00028767,7]
[339062363,1727185872013,-500.0,0.00028767,7]
[339062364,1727185872024,-500.0,0.00028767,7]
[339062365,1727185872033,-500.0,0.00028767,7]
[339062366,1727185872043,-500.0,0.00028767,7]
[339062367,1727185872053,-500.0,0.00028767,7]
[339062368,1727185872064,-902.91,0.00028767,7]
[339062369,1727185872073,-500.0,0.00028767,7]
[339062370,1727185872082,-151.0,0.00028767,7]
[339062371,1727185872091,-151.0,0.00028767,7]
[339062372,1727185872101,-500.0,0.00028767,7]
[339062373,1727185872110,-561.92,0.00028767,7]
[339062374,1727185872119,-500.0,0.00028767,7]
[339062375,1727185872130,-541.31,0.00028767,7]
[339062376,1727185872139,-500.0,0.00028767,7]
[339062377,1727185872148,-500.0,0.00028767,7]
[339062378,1727185872157,-500.0,0.00028767,7]
[339062379,1727185872166,-500.0,0.00028767,7]
[339062380,1727185872175,-1788.93,0.00028767,7]
[339062381,1727185872185,-500.0,0.00028767,7]
[339062382,1727185872194,-500.0,0.00028767,7]
[339062383,1727185872204,-662.69,0.00028767,7]
[339062384,1727185872214,-371.286522,0.00028767,7]
[339062385,1727185872224,-500.0,0.00028767,7]
[339062386,1727185872234,-500.0,0.00028767,7]
[339062387,1727185872245,-500.0,0.00028767,7]
[339062388,1727185872257,-500.0,0.00028767,7]
[339062389,1727185872267,-500.0,0.00028767,7]
[339062390,1727185872276,-371.286522,0.00028767,7]
[339062391,1727185872286,-1884.85,0.00028767,7]
[339062392,1727185872296,-190.876674,0.00028767,7]
[339062393,1727185872305,-500.0,0.00028767,7]
[339062394,1727185872315,-495.53108,0.00028767,7]
[339062395,1727185872324,-500.0,0.00028767,7]
[339062396,1727185872335,-500.0,0.00028767,7]
[339062397,1727185872351,-500.0,0.00028767,7]
[339062398,1727185872361,-190.876674,0.00028767,7]
[339062399,1727185872371,-502.87189621,0.00028767,7]
[339062400,1727185872379,-495.53108,0.00028767,7]
[339062401,1727185872389,-500.0,0.00028767,7]
[339062402,1727185872398,-500.0,0.00028767,7]
[339062403,1727185872407,-500.0,0.00028767,7]
[339062404,1727185872417,-151.0,0.00028767,7]
[339062405,1727185872427,-503.67458902,0.00028767,7]
[339062406,1727185872436,-500.0,0.00028767,7]
[339062407,1727185872446,-500.0,0.00028767,7]
[339062408,1727185872455,-500.0,0.00028767,7]
[339062409,1727185872465,-500.0,0.00028767,7]
[339062410,1727185872475,-500.0,0.00028767,7]
[339062411,1727185872484,-563.81,0.00028767,7]
[339062412,1727185872492,-637.77,0.00028767,7]
[339062413,1727185872501,-500.0,0.00028767,7]
[339062414,1727185872511,-298.58273,0.00028767,7]
[339062415,1727185872520,-500.0,0.00028767,7]
[339062416,1727185872530,-1161.23088,0.00028767,7]
[339062417,1727185872541,-325.818599,0.00028767,7]
[339062418,1727185872550,-500.0,0.00028767,7]
[339062419,1727185872559,-500.0,0.00028767,7]
[339062420,1727185872569,-1161.23088,0.00028767,7]
[339062421,1727185872578,-298.582728,0.00028767,7]
[339062422,1727185872587,-838.89,0.00028767,7]
[339062423,1727185872596,-325.818599,0.00028767,7]
[339062424,1727185872605,-500.0,0.00028767,7]
[339062425,1727185872615,-499.12483642,0.00028767,7]
[339062426,1727185872625,-928.12,0.00028767,7]
[339062427,1727185872637,-500.0,0.00028767,7]
[339062428,1727185872647,-588.89,0.00028767,7]
[339062429,1727185872658,-500.0,0.00028767,7]
[339062430,1727185872668,-1019.76,0.00028767,7]
[339062431,1727185872677,-324.20641,0.00028767,7]
[339062432,1727185872687,-500.0,0.00028767,7]
[339062433,1727185872696,-324.20641,0.00028767,7]
[339062434,1727185872705,-701.67,0.00028767,7]
[339062435,1727185872798,-500.0,0.00028767,7]
[339062436,1727185872808,-4004.81,0.000288,14]
[339062437,1727185872818,-8867.34,0.000288,14]
[339062438,1727185872828,-2378.47,0.000288,14]
[339062439,1727185872839,-6692.3739639,0.00028836,2]
[339062440,1727185872849,-266.39,0.000289,7]
[339062441,1727185872859,-580.0,0.000289,120]
[339062442,1727185872868,-169.328,0.00028928,21]
[339062443,1727185872878,-2000.0,0.00029,2]
[339062444,1727185872888,-500.0,0.00029,10]
[339062445,1727185872897,-500.0,0.00029,8]
[339062446,1727185872906,-500.0,0.00029041,7]
[339062447,1727185872916,-500.0,0.00029041,7]
[339062448,1727185872927,-786.36,0.00029041,7]
[339062449,1727185872937,-500.0,0.00029041,7]
[339062450,1727185872947,-822.91,0.00029041,7]
[339062451,1727185872957,-664.95,0.00029041,7]
[339062452,1727185872967,-500.0,0.00029041,7]
[339062453,1727185872976,-720.13,0.00029041,7]
[339062454,1727185872986,-637.03,0.00029041,7]
[339062455,1727185872995,-856.26,0.00029041,7]
[339062456,1727185873004,-500.0,0.00029041,7]
[339062457,1727185873013,-500.0,0.00029041,7]
[339062458,1727185873022,-528.4,0.00029041,7]
[339062459,1727185873032,-500.0,0.00029041,7]
[339062460,1727185873042,-500.0,0.00029041,7]
[339062461,1727185873051,-500.0,0.00029041,7]
[339062462,1727185873060,-151.0,0.00029041,7]
[339062463,1727185873069,-500.0,0.00029041,7]
[339062464,1727185873078,-151.0,0.00029041,7]
[339062465,1727185873087,-151.0,0.00029041,7]
[339062466,1727185873096,-151.0,0.00029041,7]
[339062467,1727185873105,-153.13756,0.00029041,7]
[339062468,1727185873114,-197.32544,0.00029041,7]
[339062469,1727185873123,-500.0,0.00029041,7]
[339062470,1727185873132,-151.0,0.00029041,7]
[339062471,1727185873141,-151.0,0.00029041,7]
[339062472,1727185873150,-500.0,0.00029041,7]
[339062473,1727185873160,-550.65,0.00029041,7]
[339062474,1727185873169,-500.0,0.00029041,7]
[339062475,1727185873178,-500.0,0.00029041,7]
[339062476,1727185873187,-500.0,0.00029041,7]
[339062477,1727185873196,-500.0,0.00029041,7]
[339062478,1727185873205,-500.0,0.00029041,2]
[339062479,1727185873215,-500.0,0.00029041,7]
[339062480,1727185873224,-500.0,0.00029041,7]
[339062481,1727185873233,-500.0,0.00029041,7]
[339062482,1727185873242,-574.18,0.00029041,7]
[339062483,1727185873252,-500.0,0.00029041,7]
[339062484,1727185873261,-500.0,0.00029041,7]
[339062485,1727185873272,-536.26,0.00029041,7]
[339062486,1727185873283,-779.29,0.00029041,7]
[339062487,1727185873295,-500.0,0.00029041,7]
[339062488,1727185873305,-500.0,0.00029041,7]
[339062489,1727185873315,-500.0,0.00029041,7]
[339062490,1727185873327,-500.0,0.00029041,7]
[339062491,1727185873336,-981.24,0.00029041,7]
[339062492,1727185873348,-190.78795044,0.00029041,7]
[339062493,1727185873357,-500.0,0.00029041,7]
[339062494,1727185873366,-500.0,0.00029041,7]
[339062495,1727185873376,-668.98,0.00029041,7]
[339062496,1727185873385,-500.0,0.00029041,7]
[339062497,1727185873394,-667.57,0.00029041,7]
[339062498,1727185873403,-1224.72,0.00029041,7]
[339062499,1727185873412,-500.0,0.00029041,7]
[339062500,1727185873421,-846.35,0.00029041,7]
[339062501,1727185873430,-523.09,0.00029041,7]
[339062502,1727185873439,-500.0,0.00029041,7]
[339062503,1727185873448,-832.28,0.00029041,2]
[339062504,1727185873457,-539.78,0.00029041,7]
[339062505,1727185873466,-500.0,0.00029041,7]
[339062506,1727185873475,-500.0,0.00029041,7]
[339062507,1727185873484,-500.0,0.00029041,7]
[339062508,1727185873493,-834.7,0.00029041,7]
[339062509,1727185873502,-882.2,0.00029041,7]
[339062510,1727185873511,-700.78,0.00029041,7]
[339062511,1727185873520,-923.88,0.00029041,7]
[339062512,1727185873529,-500.0,0.00029041,7]
[339062513,1727185873547,-500.0,0.00029041,7]
[339062514,1727185873556,-500.0,0.00029041,7]
[339062515,1727185873565,-500.0,0.00029041,7]
[339062516,1727185873574,-500.0,0.00029041,7]
[339062517,1727185873583,-699.55,0.00029041,7]
[339062518,1727185873593,-500.0,0.00029041,7]
[339062519,1727185873602,-243.105565,0.00029041,7]
[339062520,1727185873611,-500.0,0.00029041,7]
[339062521,1727185873621,-500.0,0.00029041,7]
[339062522,1727185873631,-500.0,0.00029041,2]
[339062523,1727185873641,-500.0,0.00029041,7]
[339062524,1727185873650,-949.76,0.00029041,7]
[339062525,1727185873660,-500.0,0.00029041,7]
[339062526,1727185873669,-500.0,0.00029041,7]
[339062527,1727185873679,-603.71,0.00029041,7]
[339062528,1727185873688,-500.0,0.00029041,7]
[339062529,1727185873697,-500.0,0.00029041,7]
[339062530,1727185873707,-638.14284312,0.00029041,7]
[339062531,1727185873716,-683.94,0.00029041,7]
[339062532,1727185873725,-1000.0,0.00029041,7]
[339062533,1727185873735,-940.34,0.00029041,7]
[339062534,1727185873744,-500.0,0.00029041,7]
[339062535,1727185873754,-354.51,0.00029041,7]
[339062536,1727185873763,-797.23,0.00029041,7]
[339062537,1727185873773,-500.0,0.00029041,7]
[339062538,1727185873786,-523.77,0.00029041,7]
[339062539,1727185873796,-500.0,0.00029041,7]
[339062540,1727185873805,-634.21,0.00029041,7]
[339062541,1727185873815,-500.0,0.00029041,7]
[339062542,1727185873824,-412.72384826,0.00029041,7]
[339062543,1727185873834,-500.0,0.00029041,7]
[339062544,1727185873844,-500.0,0.00029041,7]
[339062545,1727185873854,-584.69905672,0.00029041,7]
[339062546,1727185873864,-500.0,0.00029041,7]
[339062547,1727185873874,-500.0,0.00029041,7]
[339062548,1727185873884,-500.0,0.00029041,7]
[339062549,1727185873893,-500.0,0.00029041,7]
[339062550,1727185873902,-553.76073673,0.00029041,7]
[339062551,1727185873911,-774.11,0.00029041,7]
[339062552,1727185873921,-500.0,0.00029041,7]
[339062553,1727185873931,-500.0,0.00029041,7]
[339062554,1727185873941,-532.41,0.00029041,7]
[339062555,1727185873950,-519.04,0.00029041,7]
[339062556,1727185873960,-994.06,0.00029041,7]
[339062557,1727185873969,-751.74,0.00029041,7]
[339062558,1727185873978,-641.08,0.00029041,7]
[339062559,1727185873987,-500.0,0.00029041,7]
[339062560,1727185873997,-810.17,0.00029041,2]
[339062561,1727185874006,-922.97,0.00029041,7]
[339062562,1727185874015,-525.65336211,0.00029041,7]
[339062563,1727185874027,-500.0,0.00029041,7]
[339062564,1727185874042,-1474.2,0.00029041,7]
[339062565,1727185874052,-675.51,0.00029041,7]
[339062566,1727185874062,-930.14,0.00029041,7]
[339062567,1727185874071,-623.3,0.00029041,7]
[339062568,1727185874080,-500.0,0.00029041,7]
[339062569,1727185874089,-500.0,0.00029041,7]
[339062570,1727185874098,-3188.19,0.00029041,7]
[339062571,1727185874107,-500.0,0.00029041,7]
[339062572,1727185874188,-1028.41,0.00029041,7]
[339062573,1727185874203,-1600.85,0.00029041,7]
[339062574,1727185874213,-500.0,0.00029041,7]
[339062575,1727185874224,-1081.35,0.00029041,7]
[339062576,1727185874235,-500.0,0.00029041,7]
[339062577,1727185874246,-500.0,0.00029041,7]
[339062578,1727185874257,-500.0,0.00029041,7]
[339062579,1727185874267,-755.32,0.00029041,7]
[339062580,1727185874277,-500.0,0.00029041,7]
[339062581,1727185874288,-500.0,0.00029041,7]
[339062582,1727185874298,-518.85,0.00029041,7]
[339062583,1727185874307,-500.0,0.00029041,7]
[339062584,1727185874316,-537.38,0.00029041,7]
[339062585,1727185874327,-500.0,0.00029041,7]
[339062586,1727185874336,-500.0,0.00029041,7]
[339062587,1727185874347,-1428.87,0.00029041,7]
[339062588,1727185874357,-500.0,0.00029041,7]
[339062589,1727185874366,-500.0,0.00029041,7]
[339062590,1727185874376,-500.0,0.00029041,7]
[339062591,1727185874387,-894.35,0.00029041,7]
[339062592,1727185874398,-719.56,0.00029041,7]
[339062593,1727185874409,-252.68,0.00029041,7]
[339062594,1727185874420,-500.0,0.00029041,7]
[339062595,1727185874430,-835.58,0.00029041,7]
[339062596,1727185874442,-689.75,0.00029041,7]
[339062597,1727185874453,-500.0,0.00029041,7]
[339062598,1727185874463,-151.0,0.00029041,7]
[339062599,1727185874474,-500.0,0.00029041,7]
[339062600,1727185874483,-151.0,0.00029041,7]
[339062601,1727185874492,-671.66,0.00029041,7]
[339062602,1727185874501,-500.0,0.00029041,7]
[339062603,1727185874511,-500.0,0.00029041,7]
[339062604,1727185874520,-1570.3,0.00029041,7]
[339062605,1727185874529,-500.0,0.00029041,7]
[339062606,1727185874539,-929.8,0.00029041,7]
[339062607,1727185874549,-825.571215,0.00029041,7]
[339062608,1727185874559,-825.571215,0.00029041,7]
[339062609,1727185874569,-586.32,0.00029041,7]
[339062610,1727185874578,-500.0,0.00029041,7]
[339062611,1727185874587,-978.1,0.00029041,7]
[339062612,1727185874597,-240.90618,0.00029041,7]
[339062613,1727185874606,-500.0,0.00029041,7]
[339062614,1727185874615,-240.90618,0.00029041,7]
[339062615,1727185874623,-528.17,0.00029041,7]
[339062616,1727185874632,-500.0,0.00029041,7]
[339062617,1727185874642,-649.94413979,0.00029041,7]
[339062618,1727185874650,-500.0,0.00029041,7]
[339062619,1727185874659,-500.0,0.00029041,7]
[339062620,1727185874668,-500.0,0.00029041,7]
[339062621,1727185874680,-226.64313898,0.00029041,7]
[339062622,1727185874691,-981.83,0.00029041,7]
[339062623,1727185874703,-703.98,0.00029041,7]
[339062624,1727185874714,-500.0,0.00029041,7]
[339062625,1727185874725,-500.0,0.00029041,7]
[339062626,1727185874735,-360.83037394,0.00029041,7]
[339062627,1727185874748,-564.57,0.00029041,7]
[339062628,1727185874758,-688.17,0.00029041,7]
[339062629,1727185874768,-1121.809827,0.00029041,7]
[339062630,1727185874777,-647.27,0.00029041,7]
[339062631,1727185874789,-394.48482204,0.00029041,7]
[339062632,1727185874799,-500.0,0.00029041,7]
[339062633,1727185874809,-500.0,0.00029041,7]
[339062634,1727185874819,-1121.809827,0.00029041,7]
[339062635,1727185874839,-1043.980229,0.00029041,7]
[339062636,1727185874856,-500.0,0.00029041,7]
[339062637,1727185874876,-1043.980229,0.00029041,7]
[339062638,1727185874893,-500.0,0.00029041,7]
[339062639,1727185874913,-500.0,0.00029041,7]
[339062640,1727185874929,-500.0,0.00029041,7]
[339062641,1727185874948,-500.0,0.00029041,7]
[339062642,1727185874964,-503.35483377,0.00029041,7]
[339062643,1727185874981,-500.0,0.00029041,7]
[339062644,1727185875001,-500.0,0.00029041,7]
[339062645,1727185875018,-500.0,0.00029041,7]
[339062646,1727185875030,-902.91,0.00029041,7]
[339062647,1727185875051,-151.0,0.00029041,7]
[339062648,1727185875066,-335.93550948,0.00029041,7]
[339062649,1727185875081,-156.477397,0.00029041,7]
[339062650,1727185875096,-500.0,0.00029041,7]
[339062651,1727185875111,-561.92,0.00029041,7]
[339062652,1727185875125,-500.0,0.00029041,7]
[339062653,1727185875140,-541.31,0.00029041,7]
[339062654,1727185875153,-500.0,0.00029041,7]
[339062655,1727185875167,-500.0,0.00029041,7]
[339062656,1727185875181,-500.0,0.00029041,7]
[339062657,1727185875195,-380.04713147,0.00029041,7]
[339062658,1727185875208,-1788.93,0.00029041,7]
[339062659,1727185875223,-500.0,0.00029041,7]
[339062660,1727185875239,-500.0,0.00029041,7]
[339062661,1727185875254,-662.69,0.00029041,7]
[339062662,1727185875269,-371.286522,0.00029041,7]
[339062663,1727185875285,-500.0,0.00029041,7]
[339062664,1727185875301,-500.0,0.00029041,7]
[339062665,1727185875317,-500.0,0.00029041,7]
[339062666,1727185875333,-500.0,0.00029041,7]
[339062667,1727185875350,-500.0,0.00029041,7]
[339062668,1727185875366,-371.286522,0.00029041,7]
[339062669,1727185875381,-1884.85,0.00029041,7]
[339062670,1727185875395,-190.876674,0.00029041,7]
[339062671,1727185875409,-500.0,0.00029041,7]
[339062672,1727185875422,-495.53108,0.00029041,7]
[339062673,1727185875436,-500.0,0.00029041,7]
[339062674,1727185875449,-500.0,0.00029041,7]
[339062675,1727185875463,-500.0,0.00029041,7]
[339062676,1727185875477,-190.876674,0.00029041,7]
[339062677,1727185875491,-495.53108,0.00029041,7]
[339062678,1727185875504,-500.0,0.00029041,7]
[339062679,1727185875518,-500.0,0.00029041,7]
[339062680,1727185875532,-500.0,0.00029041,7]
[339062681,1727185875548,-500.0,0.00029041,7]
[339062682,1727185875562,-500.0,0.00029041,7]
[339062683,1727185875576,-500.0,0.00029041,7]
[339062684,1727185875589,-500.0,0.00029041,7]
[339062685,1727185875598,-500.0,0.00029041,7]
[339062686,1727185875607,-563.81,0.00029041,7]
[339062687,1727185875616,-637.77,0.00029041,7]
[339062688,1727185875626,-500.0,0.00029041,7]